bitfinex/quotes_BTCUSD_20241222
["timestamp","ask_amount","ask_price","bid_price","bid_amount"]
[1734879643906,0.0005443,95454.0,95449.0,0.209535]
[1734879644151,0.0005443,95454.0,95449.0,0.3108434]
[1734879644352,0.0005443,95454.0,95451.0,0.209531]
[1734879644556,0.0005443,95454.0,95453.0,0.209527]
[1734879644804,0.0005443,95454.0,95453.0,0.4608354]
[1734879644986,0.0005443,95454.0,95453.0,0.5358354]
[1734879645886,0.0005443,95454.0,95453.0,0.1013084]
[1734879646846,0.0005443,95454.0,95447.0,0.15]
[1734879647051,0.0005443,95454.0,95448.0,0.1013084]
[1734879647237,0.0005443,95454.0,95444.0,0.209546]
[1734879647238,0.0005443,95454.0,95453.0,0.002]
[1734879648055,0.00247621,95454.0,95453.0,0.002]
[1734879648319,0.00352551,95454.0,95453.0,0.002]
[1734879648797,0.00247621,95454.0,95430.0,0.00104763]
[1734879648967,0.209543,95446.0,95431.0,0.1013084]
[1734879649109,0.00193191,95448.0,95431.0,0.5204574]
[1734879649315,0.00193191,95447.0,95431.0,0.1013084]
[1734879649514,0.00193191,95445.0,95420.0,0.13308002]
[1734879649772,0.00193191,95445.0,95432.0,0.1013084]
[1734879649947,0.00193191,95445.0,95433.0,0.20957]
[1734879650145,0.00193191,95445.0,95434.0,0.1013084]
[1734879650344,0.00193191,95445.0,95435.0,0.21061368]
[1734879650893,0.00193191,95445.0,95434.0,0.1013084]
[1734879651067,0.00193191,95432.0,95431.0,0.003]
[1734879651443,0.00193191,95438.0,95431.0,0.003]
[1734879651634,0.209546,95445.0,95431.0,0.003]
[1734879651837,0.00193191,95442.0,95433.0,0.209571]
[1734879652237,0.00193191,95452.0,95434.0,0.10235611]
[1734879652446,0.2100693,95454.0,95434.0,0.10235611]
[1734879652654,0.2100693,95454.0,95441.0,0.209551]
[1734879653061,0.00193191,95447.0,95437.0,0.20956]
[1734879653210,0.21146091,95452.0,95438.0,0.00104765]
[1734879653419,0.209561,95438.0,95434.0,0.1013084]
[1734879653618,0.00193191,95438.0,95407.0,0.09341696]
[1734879653829,0.00193191,95443.0,95424.0,0.20959]
[1734879654002,0.00193191,95438.0,95430.0,0.209575]
[1734879654202,0.00193191,95438.0,95426.0,0.209586]
[1734879654555,0.00193191,95438.0,95427.0,0.1013084]
[1734879654864,0.00193191,95438.0,95434.0,8.56e-05]
[1734879655231,0.01906422,95437.0,95434.0,8.56e-05]
[1734879656030,0.00193191,95438.0,95434.0,8.56e-05]
[1734879656225,0.01906422,95441.0,95434.0,8.56e-05]
[1734879656663,0.01906422,95440.0,95434.0,8.56e-05]
[1734879657022,0.01906422,95442.0,95434.0,8.56e-05]
[1734879657493,0.00193191,95443.0,95434.0,8.56e-05]
[1734879657709,0.00193191,95448.0,95435.0,0.1013084]
[1734879657910,0.00193191,95455.0,95436.0,0.00104766]
[1734879658043,0.00193191,95448.0,95436.0,0.10235606]
[1734879658241,0.209543,95446.0,95436.0,0.1013084]
[1734879658448,0.419086,95446.0,95436.0,0.1013084]
[1734879658673,0.209543,95446.0,95436.0,0.1013084]
[1734879658867,0.00193191,95437.0,95434.0,8.56e-05]
[1734879659274,0.00193191,95444.0,95434.0,8.56e-05]
[1734879659898,0.00193191,95441.0,95434.0,8.56e-05]
[1734879660221,0.009,95437.0,95434.0,0.0010856]
[1734879660564,0.00193191,95444.0,95434.0,8.56e-05]
[1734879660774,0.02101352,95452.0,95435.0,0.1013084]
[1734879660973,0.21147291,95447.0,95435.0,0.1013084]
[1734879661173,0.00193191,95447.0,95435.0,0.1013084]
[1734879661396,0.209554,95441.0,95435.0,0.1013084]
[1734879661599,0.00193191,95437.0,95434.0,8.56e-05]
[1734879661963,0.21149491,95437.0,95434.0,8.56e-05]
[1734879662660,0.21149491,95437.0,95435.0,0.001]
[1734879663028,0.21149491,95437.0,95434.0,8.56e-05]
[1734879663218,0.00193191,95437.0,95434.0,0.0020856]
[1734879663417,0.0105441,95464.0,95434.0,0.0020856]
[1734879663418,0.1988,95466.0,95435.0,0.1013084]
[1734879663623,0.00193191,95455.0,95436.0,0.00104765]
[1734879663838,0.00193191,95458.0,95445.0,0.209543]
[1734879664037,0.00193191,95458.0,95446.0,0.1013084]
[1734879664607,0.00193191,95458.0,95447.0,0.20954]
[1734879664842,0.00193191,95458.0,95447.0,0.3108484]
[1734879665625,0.00193191,95458.0,95447.0,0.1013084]
[1734879665827,0.0015443,95454.0,95447.0,0.1013084]
[1734879666460,0.0015443,95454.0,95448.0,0.209538]
[1734879666756,0.0005443,95454.0,95452.0,0.209527]
[1734879667259,0.0005443,95454.0,95453.0,0.1013084]
[1734879667618,0.0005443,95454.0,95453.0,0.10235588]
[1734879668220,0.0005443,95454.0,95453.0,0.25235588]
[1734879668422,0.0005443,95454.0,95453.0,0.2513084]
[1734879668643,0.0005443,95454.0,95453.0,0.3332084]
[1734879669116,0.0005443,95454.0,95453.0,0.2513084]
[1734879670132,0.0015443,95454.0,95453.0,0.2513084]
[1734879670338,0.0005443,95454.0,95453.0,0.2513084]
[1734879670547,0.0005443,95454.0,95453.0,0.56854046]
[1734879670873,0.0015443,95454.0,95453.0,0.56854046]
[1734879671074,0.0005443,95454.0,95453.0,0.56854046]
[1734879671677,0.0005443,95454.0,95453.0,0.66660855]
[1734879671877,0.0005443,95454.0,95453.0,0.76660855]
[1734879672031,0.0005443,95454.0,95453.0,0.77698607]
[1734879672233,0.0005443,95454.0,95453.0,0.85888607]
[1734879672458,0.0015443,95454.0,95453.0,0.88188607]
[1734879672910,0.0005443,95454.0,95453.0,1.32714651]
[1734879673111,4.656e-05,95454.0,95453.0,1.32714651]
[1734879673310,4.656e-05,95454.0,95453.0,1.33214651]
[1734879673512,5.6e-07,95454.0,95453.0,1.32714651]
[1734879673715,0.0001714,95471.0,95469.0,0.459492]
[1734879673929,0.00033436,95470.0,95469.0,0.5608004]
[1734879674877,0.00033436,95470.0,95469.0,0.76376849]
[1734879675093,3.6e-07,95470.0,95469.0,0.60217649]
[1734879675275,7.6e-07,95471.0,95470.0,0.37106809]
[1734879675507,7.6e-07,95471.0,95470.0,0.47237649]
[1734879675681,7.6e-07,95471.0,95470.0,0.50259864]
[1734879675908,7.6e-07,95471.0,95470.0,0.52969814]
[1734879676325,7.6e-07,95471.0,95470.0,1.07419814]
[1734879676527,7.6e-07,95471.0,95470.0,1.04497599]
[1734879676742,7.6e-07,95471.0,95470.0,0.2523084]
[1734879676939,7.6e-07,95471.0,95470.0,0.2513084]
[1734879677143,7.6e-07,95471.0,95470.0,0.44937649]
[1734879677361,0.00100076,95471.0,95470.0,0.45837649]
[1734879677562,7.6e-07,95471.0,95470.0,0.44937649]
[1734879677934,7.6e-07,95471.0,95470.0,0.48559864]
[1734879678184,7.6e-07,95471.0,95470.0,1.19249816]
[1734879678389,7.6e-07,95471.0,95470.0,1.60063877]
[1734879678957,7.6e-07,95471.0,95470.0,1.43281712]
[1734879679345,0.0001712,95480.0,95479.0,0.45947]
[1734879679536,0.0001712,95480.0,95479.0,1.18252649]
[1734879680145,0.0001712,95480.0,95479.0,1.25342649]
[1734879680553,0.0001712,95480.0,95479.0,1.0844584]
[1734879680845,0.2096382,95480.0,95479.0,0.52568]
[1734879681044,0.21157011,95480.0,95479.0,0.52568]
[1734879681230,0.21157011,95480.0,95479.0,0.82132061]
[1734879681432,0.0001712,95480.0,95479.0,0.82132061]
[1734879682280,0.0001712,95480.0,95479.0,1.13209901]
[1734879682489,0.0001712,95480.0,95479.0,0.8344584]
[1734879682739,0.0001712,95480.0,95479.0,0.6329884]
[1734879683097,0.0001712,95480.0,95479.0,0.6249884]
[1734879683301,0.0031712,95480.0,95479.0,0.6249884]
[1734879683707,0.0001712,95480.0,95479.0,0.6249884]
[1734879684099,0.0001712,95480.0,95479.0,0.7749884]
[1734879684319,0.0001712,95480.0,95479.0,0.7809884]
[1734879684480,0.0001712,95480.0,95479.0,0.7749884]
[1734879685614,0.0001712,95480.0,95479.0,0.87305649]
[1734879686694,0.0001712,95480.0,95479.0,0.87505649]
[1734879686920,0.0001712,95480.0,95479.0,0.7769884]
[1734879687507,0.0001712,95480.0,95479.0,0.7749884]
[1734879687903,0.0001712,95480.0,95479.0,0.7769884]
[1734879689159,0.0001712,95480.0,95479.0,0.7749884]
[1734879689517,0.0031712,95480.0,95479.0,0.7749884]
[1734879689722,0.0001712,95480.0,95479.0,0.7749884]
[1734879690121,0.0021712,95480.0,95479.0,0.7749884]
[1734879690305,0.0001712,95480.0,95479.0,0.7749884]
[1734879690723,0.0031712,95480.0,95479.0,0.7749884]
[1734879692234,0.0031712,95480.0,95479.0,0.6249884]
[1734879692686,0.00510311,95480.0,95479.0,0.52368]
[1734879693680,0.00210311,95480.0,95479.0,0.52368]
[1734879693889,0.00510311,95480.0,95479.0,0.52468]
[1734879694284,0.00210311,95480.0,95479.0,0.52368]
[1734879694491,0.00210311,95480.0,95479.0,0.53168]
[1734879694918,0.00210311,95480.0,95479.0,0.52368]
[1734879695135,0.35926081,95480.0,95479.0,0.447773]
[1734879695334,0.38311151,95480.0,95479.0,0.056132]
[1734879695503,0.48311151,95480.0,95479.0,0.056132]
[1734879695711,0.50217451,95480.0,95479.0,0.056132]
[1734879696519,0.02116611,95480.0,95479.0,0.056132]
[1734879696696,0.02216611,95480.0,95479.0,0.063132]
[1734879696893,0.02116611,95480.0,95479.0,0.056132]
[1734879697095,0.00210311,95480.0,95479.0,0.056132]
[1734879697891,0.00210311,95480.0,95479.0,0.06298959]
[1734879698326,0.00210311,95480.0,95479.0,0.056132]
[1734879698527,0.00310311,95480.0,95479.0,0.064132]
[1734879700976,0.12846081,95480.0,95479.0,0.064132]
[1734879701398,0.22846081,95480.0,95479.0,0.064132]
[1734879701600,0.22741151,95480.0,95479.0,0.064132]
[1734879702700,0.47741151,95480.0,95479.0,0.064132]
[1734879703162,0.47741151,95480.0,95479.0,0.008]
[1734879703364,0.49648066,95480.0,95479.0,0.008]
[1734879703559,0.00193191,95471.0,95470.0,8.56e-05]
[1734879703862,0.12728961,95471.0,95470.0,8.56e-05]
[1734879704269,0.37728961,95471.0,95470.0,8.56e-05]
[1734879704467,0.39530946,95471.0,95470.0,8.56e-05]
[1734879704916,0.39530946,95471.0,95470.0,0.0030856]
[1734879705068,0.39530946,95471.0,95470.0,8.56e-05]
[1734879705533,0.39530946,95471.0,95470.0,0.0010856]
[1734879709358,0.40594072,95471.0,95470.0,0.0010856]
[1734879713752,0.12037755,95471.0,95470.0,0.0010856]
[1734879713928,0.02100106,95471.0,95470.0,0.0010856]
[1734879714134,0.02205036,95471.0,95470.0,0.0010856]
[1734879714520,0.00298121,95471.0,95470.0,0.0010856]
[1734879714721,0.10428961,95471.0,95470.0,0.0010856]
[1734879715144,0.00298121,95471.0,95470.0,0.0010856]
[1734879716479,0.00193191,95471.0,95470.0,0.0010856]
[1734879717550,0.209485,95472.0,95470.0,0.0010856]
[1734879717551,0.00193191,95472.0,95470.0,0.0010856]
[1734879717761,0.0001712,95479.0,95471.0,0.1252]
[1734879717960,0.0001712,95479.0,95476.0,0.209475]
[1734879718161,0.0001712,95479.0,95478.0,0.209472]
[1734879718362,0.00193191,95475.0,95471.0,0.1252]
[1734879718619,0.0001712,95479.0,95472.0,0.1013084]
[1734879718793,0.0001712,95479.0,95477.0,0.209472]
[1734879719299,0.0001712,95479.0,95478.0,0.00104726]
[1734879719498,0.0001712,95479.0,95478.0,0.17835566]
[1734879720148,0.0001712,95479.0,95478.0,0.22755566]
[1734879720363,0.0001712,95479.0,95478.0,0.2265084]
[1734879721737,0.0041712,95479.0,95478.0,0.2265084]
[1734879722080,0.0001712,95479.0,95478.0,0.2265084]
[1734879722432,0.0051712,95479.0,95478.0,0.1252]
[1734879722634,0.0001712,95479.0,95478.0,0.1252]
[1734879723137,0.0061712,95479.0,95478.0,0.12624725]
[1734879723338,0.0061712,95479.0,95478.0,0.2265084]
[1734879724391,0.0001714,95496.0,95495.0,0.209435]
[1734879724580,0.0001714,95496.0,95495.0,0.4414434]
[1734879726040,0.0051714,95496.0,95495.0,0.4424434]
[1734879726448,0.00193191,95522.0,95519.0,0.418764]
[1734879726654,0.00193191,95523.0,95521.0,0.209378]
[1734879726826,0.00033442,95527.0,95520.0,0.1307]
[1734879727063,0.00033442,95527.0,95522.0,0.0010468]
[1734879727263,0.00033442,95527.0,95523.0,0.3106804]
[1734879727473,0.20969942,95527.0,95524.0,0.00104672]
[1734879727685,0.209383,95519.0,95508.0,0.0831]
[1734879727830,0.00193191,95518.0,95509.0,0.1013084]
[1734879728367,0.00193191,95518.0,95510.0,0.209402]
[1734879728570,0.00193191,95518.0,95511.0,0.1013084]
[1734879728780,0.00193191,95518.0,95511.0,0.10235525]
[1734879729131,0.00033442,95527.0,95512.0,0.00104685]
[1734879729368,0.00029442,95527.0,95513.0,0.1013084]
[1734879729538,0.00029442,95527.0,95510.0,0.422804]
[1734879729539,0.00193191,95522.0,95510.0,0.422804]
[1734879729742,0.00029442,95527.0,95510.0,0.422804]
[1734879729743,0.00193191,95524.0,95514.0,0.1013084]
[1734879729939,0.00193191,95524.0,95515.0,0.00104681]
[1734879730289,0.00322633,95527.0,95520.0,0.209378]
[1734879730487,0.00322633,95527.0,95521.0,0.1013084]
[1734879731397,0.00322633,95527.0,95512.0,0.213396]
[1734879731398,0.00193191,95522.0,95512.0,0.213396]
[1734879731606,0.00193191,95522.0,95513.0,0.1013084]
[1734879731986,0.00193191,95522.0,95514.0,0.003]
[1734879732255,0.00193191,95522.0,95515.0,0.1013084]
[1734879732678,0.00193191,95515.0,95508.0,0.0831]
[1734879732888,0.00193191,95511.0,95508.0,0.0831]
[1734879733466,0.209382,95519.0,95508.0,0.0831]
[1734879733642,0.00193191,95516.0,95515.0,0.001]
[1734879734012,0.008,95522.0,95515.0,0.001]
[1734879734333,0.008,95522.0,95516.0,0.1013084]
[1734879734633,0.008,95522.0,95518.0,0.209384]
[1734879734835,0.008,95522.0,95521.0,0.15]
[1734879735082,0.008,95522.0,95521.0,0.33025507]
[1734879735314,0.00193191,95542.0,95523.0,0.15]
[1734879735514,0.00193191,95542.0,95524.0,0.52109699]
[1734879736124,0.0001712,95547.0,95526.0,0.209367]
[1734879736326,0.0001712,95547.0,95526.0,0.3008084]
[1734879736523,0.0001712,95547.0,95536.0,0.437245]
[1734879736723,0.0001712,95547.0,95536.0,0.5385534]
[1734879736925,0.10891022,95580.0,95542.0,0.209332]
[1734879737143,0.00054376,95556.0,95543.0,0.10235482]
[1734879737311,0.00054376,95556.0,95544.0,0.209327]
[1734879737515,0.00054376,95556.0,95552.0,0.209308]
[1734879737721,0.00054376,95556.0,95553.0,0.1013084]
[1734879737927,0.00054376,95556.0,95554.0,0.209305]
[1734879738131,0.00054376,95556.0,95555.0,0.22975479]
[1734879738386,0.00054376,95556.0,95555.0,0.2287084]
[1734879739122,0.00954376,95556.0,95555.0,0.2287084]
[1734879739442,0.00054376,95556.0,95555.0,0.2287084]
[1734879739806,0.002,95556.0,95555.0,0.2287084]
[1734879740186,0.209248,95580.0,95556.0,0.209301]
[1734879740461,0.0010493,95579.0,95555.0,0.0495]
[1734879740746,0.209292,95561.0,95545.0,0.287224]
[1734879740964,0.00016306,95580.0,95556.0,0.1013084]
[1734879741172,0.20925,95579.0,95558.0,0.1274]
[1734879741376,0.00016306,95580.0,95569.0,0.209272]
[1734879742082,0.20929,95561.0,95547.0,0.0779]
[1734879742218,0.209304,95555.0,95547.0,0.0779]
[1734879743228,8.55e-05,95562.0,95548.0,0.3106264]
[1734879743641,0.20929,95561.0,95548.0,0.3106264]
[1734879745042,0.41858,95561.0,95548.0,0.1013084]
[1734879745569,0.41858,95561.0,95548.0,0.1043084]
[1734879745825,0.20929,95561.0,95549.0,0.209316]
[1734879746000,8.55e-05,95562.0,95550.0,0.10235483]
[1734879746401,8.55e-05,95562.0,95555.0,0.209302]
[1734879746606,8.55e-05,95562.0,95558.0,0.209295]
[1734879746808,8.55e-05,95562.0,95560.0,0.209292]
[1734879747011,8.55e-05,95562.0,95561.0,0.1013084]
[1734879748829,0.0010855,95562.0,95561.0,0.1093084]
[1734879749237,8.55e-05,95562.0,95561.0,0.1013084]
[1734879749440,0.0050855,95562.0,95561.0,0.1013084]
[1734879749840,8.55e-05,95562.0,95561.0,0.2255084]
[1734879751052,8.55e-05,95562.0,95561.0,0.1242]
[1734879751257,0.0050855,95562.0,95552.0,0.0789]
[1734879751454,8.55e-05,95562.0,95554.0,0.209305]
[1734879752094,8.55e-05,95562.0,95553.0,0.1013084]
[1734879752095,0.0040855,95562.0,95553.0,0.1013084]
[1734879752257,8.55e-05,95562.0,95553.0,0.1013084]
[1734879752719,0.0050855,95562.0,95553.0,0.1013084]
[1734879753062,0.2093,95557.0,95553.0,0.1013084]
[1734879753554,0.20929,95561.0,95553.0,0.1013084]
[1734879754055,0.209292,95560.0,95553.0,0.1013084]
[1734879754290,8.55e-05,95562.0,95553.0,0.1013084]
[1734879754494,8.55e-05,95562.0,95556.0,0.15]
[1734879754699,8.55e-05,95562.0,95559.0,0.209293]
[1734879754903,8.55e-05,95562.0,95561.0,0.35929]
[1734879755105,8.55e-05,95562.0,95561.0,0.4605984]
[1734879755881,0.0050855,95562.0,95561.0,0.4605984]
[1734879756248,8.55e-05,95562.0,95561.0,0.4605984]
[1734879757646,0.0060855,95562.0,95561.0,0.4615984]
[1734879757853,0.0060855,95562.0,95561.0,0.0817]
[1734879758054,8.55e-05,95562.0,95561.0,0.3320084]
[1734879758462,0.0030855,95562.0,95550.0,0.126]
[1734879758679,0.20929,95561.0,95550.0,0.126]
[1734879759080,8.55e-05,95562.0,95550.0,0.126]
[1734879759264,0.0030855,95562.0,95550.0,0.126]
[1734879759465,0.209294,95559.0,95550.0,0.126]
[1734879760068,0.0030855,95562.0,95550.0,0.126]
[1734879760310,0.209308,95553.0,95550.0,0.126]
[1734879760523,0.209308,95553.0,95537.0,0.1257]
[1734879760524,0.209317,95549.0,95537.0,0.1257]
[1734879760723,0.0030855,95562.0,95537.0,0.1257]
[1734879760724,0.0010493,95548.0,95537.0,0.045]
[1734879761026,0.0010493,95548.0,95524.0,0.23088381]
[1734879761027,0.209346,95536.0,95526.0,0.0807]
[1734879761226,0.209312,95551.0,95550.0,0.005]
[1734879761430,0.209312,95551.0,95527.0,0.1013084]
[1734879761707,0.209343,95537.0,95527.0,0.1013084]
[1734879761917,0.209343,95537.0,95524.0,0.20954]
[1734879761918,0.20934,95538.0,95537.0,0.003]
[1734879762537,0.22841862,95538.0,95537.0,0.003]
[1734879762710,0.209363,95528.0,95524.0,0.000171]
[1734879762864,0.418726,95528.0,95524.0,0.000171]
[1734879763501,0.209367,95526.0,95524.0,0.000171]
[1734879763701,0.023,95525.0,95524.0,0.000171]
[1734879763848,0.0240493,95525.0,95524.0,0.000171]
[1734879764050,0.2253577,95525.0,95524.0,0.000171]
[1734879764254,0.24338702,95525.0,95524.0,0.000171]
[1734879764459,0.24338702,95525.0,95480.0,0.0754]
[1734879764460,0.418897,95489.0,95480.0,0.0754]
[1734879764856,0.209457,95485.0,95480.0,0.0754]
[1734879765048,0.209457,95485.0,95479.0,0.048]
[1734879765049,0.209467,95480.0,95479.0,0.048]
[1734879765238,0.20946,95484.0,95470.0,8.56e-05]
[1734879765689,0.209452,95488.0,95470.0,8.56e-05]
[1734879765836,0.00014214,95484.0,95470.0,8.56e-05]
[1734879766048,0.00014214,95484.0,95479.0,0.3107784]
[1734879766250,0.00014214,95484.0,95483.0,0.209461]
[1734879766448,0.00014214,95484.0,95483.0,0.5087694]
[1734879768090,0.00814214,95484.0,95483.0,0.5087694]
[1734879768525,0.00014214,95484.0,95483.0,0.5087694]
[1734879768689,0.20937,95525.0,95483.0,0.5087694]
[1734879768690,0.20937,95525.0,95483.0,0.2993084]
[1734879768890,0.0010493,95524.0,95486.0,0.15]
[1734879769090,0.0010493,95524.0,95503.0,0.209417]
[1734879769290,0.209375,95522.0,95503.0,0.1013084]
[1734879769471,0.0010493,95521.0,95504.0,0.209415]
[1734879769668,0.20938,95520.0,95504.0,0.209415]
[1734879770025,0.209384,95518.0,95504.0,0.209415]
[1734879771388,0.0010493,95517.0,95504.0,0.209415]
[1734879771850,0.0010493,95517.0,95504.0,0.212415]
[1734879772187,0.418778,95516.0,95504.0,0.003]
[1734879772392,0.0010493,95515.0,95504.0,0.003]
[1734879772612,0.0010493,95519.0,95497.0,0.20943]
[1734879772816,0.209393,95514.0,95499.0,0.209426]
[1734879773029,0.209404,95510.0,95492.0,0.41888]
[1734879773372,0.0010493,95509.0,95485.0,0.15]
[1734879773589,0.209406,95508.0,95483.0,0.04854376]
[1734879773787,0.209426,95499.0,95484.0,0.209459]
[1734879773937,0.0010493,95498.0,95484.0,0.209459]
[1734879774120,0.41886,95497.0,95483.0,0.04854376]
[1734879774328,0.209435,95495.0,95483.0,0.04854376]
[1734879774525,0.0010493,95494.0,95483.0,0.04854376]
[1734879775172,0.003,95499.0,95484.0,0.10235564]
[1734879775378,0.209414,95505.0,95484.0,0.1013084]
[1734879775695,0.001,95494.0,95483.0,0.05454376]
[1734879775967,0.209439,95493.0,95483.0,0.05454376]
[1734879776213,0.209439,95493.0,95483.0,0.04854376]
[1734879776214,0.209443,95491.0,95483.0,0.04854376]
[1734879776409,0.208943,95491.0,95483.0,0.00054376]
[1734879776561,0.418387,95491.0,95483.0,0.00054376]
[1734879776758,0.208943,95491.0,95483.0,0.00054376]
[1734879777402,0.209448,95489.0,95483.0,0.00054376]
[1734879777612,0.209459,95484.0,95483.0,0.00054376]
[1734879778194,0.20945,95488.0,95483.0,0.00054376]
[1734879778374,0.0010493,95487.0,95483.0,0.00054376]
[1734879778573,0.0010493,95487.0,95483.0,0.00154376]
[1734879779296,0.0010493,95487.0,95483.0,0.00054376]
[1734879779722,0.209438,95494.0,95483.0,0.00154376]
[1734879779926,0.0010493,95493.0,95483.0,0.00154376]
[1734879780136,0.209438,95494.0,95483.0,0.00154376]
[1734879780340,0.0010493,95493.0,95483.0,0.00154376]
[1734879781297,0.0010493,95493.0,95483.0,0.21000376]
[1734879781504,0.023,95508.0,95483.0,0.21000376]
[1734879781505,0.1,95526.0,95497.0,0.0754]
[1734879781722,0.1,95528.0,95498.0,0.25847503]
[1734879781936,0.209401,95511.0,95498.0,0.048]
[1734879782183,0.0010493,95510.0,95498.0,0.257426]
[1734879782388,0.209386,95518.0,95498.0,0.048]
[1734879782599,0.209394,95514.0,95499.0,0.209426]
[1734879782804,0.0010493,95513.0,95499.0,0.209426]
[1734879783365,0.0010493,95513.0,95498.0,0.048]
[1734879783366,0.418795,95512.0,95498.0,0.048]
[1734879783746,0.209409,95507.0,95498.0,0.048]
[1734879783952,0.0010493,95506.0,95498.0,0.048]
[1734879784814,0.0010493,95506.0,95498.0,0.052]
[1734879785022,0.0010493,95506.0,95498.0,0.048]
[1734879785206,0.007,95506.0,95498.0,0.049]
[1734879785418,0.007,95506.0,95504.0,0.209414]
[1734879786395,0.007,95506.0,95500.0,0.209423]
[1734879786930,0.007,95506.0,95498.0,0.049]
[1734879786931,0.209413,95505.0,95498.0,0.049]
[1734879787147,0.004,95493.0,95487.0,0.0824]
[1734879788787,0.20945,95488.0,95485.0,0.0491]
[1734879788959,0.004,95493.0,95483.0,0.00054376]
[1734879788960,0.0010493,95487.0,95483.0,0.00054376]
[1734879789182,0.209455,95486.0,95483.0,0.00054376]
[1734879789398,0.209459,95484.0,95483.0,0.00054376]
[1734879789955,0.3337674,95484.0,95483.0,0.00054376]
[1734879790157,0.4337674,95484.0,95483.0,0.00054376]
[1734879790742,0.4528397,95484.0,95483.0,0.00054376]
[1734879791174,0.4528397,95484.0,95483.0,0.00071476]
[1734879791691,0.6083397,95484.0,95483.0,0.00071476]
[1734879791894,0.1,95480.0,95479.0,0.000171]
[1734879792103,0.4753577,95480.0,95479.0,0.00033422]
[1734879792309,0.1,95471.0,95435.0,0.0824]
[1734879792532,0.3753577,95471.0,95470.0,0.00022774]
[1734879792714,0.5837954,95471.0,95470.0,0.00022774]
[1734879793097,0.6028677,95471.0,95470.0,0.00022774]
[1734879793477,0.60817549,95471.0,95470.0,0.00022774]
[1734879793702,0.72581831,95471.0,95470.0,7.4e-07]
[1734879793904,0.72581831,95471.0,95428.0,0.0492708]
[1734879793905,0.332542,95446.0,95428.0,0.0001708]
[1734879794108,0.4338504,95446.0,95428.0,0.0001708]
[1734879794309,0.4338504,95446.0,95445.0,0.00024876]
[1734879794310,0.5833504,95446.0,95445.0,0.00024876]
[1734879794484,0.1,95438.0,95428.0,0.0001708]
[1734879794682,0.332566,95435.0,95428.0,0.0001708]
[1734879794890,0.4338744,95435.0,95428.0,0.0001708]
[1734879795479,0.4529467,95435.0,95428.0,0.0001708]
[1734879795747,0.4524467,95435.0,95428.0,0.0001708]
[1734879796352,0.4534467,95435.0,95428.0,0.0001708]
[1734879797021,0.0200723,95435.0,95428.0,0.0001708]
[1734879797456,0.0211216,95435.0,95428.0,0.0001708]
[1734879797679,0.0020493,95435.0,95428.0,0.0001708]
[1734879797913,0.0010493,95435.0,95428.0,0.0001708]
[1734879798281,0.0010493,95436.0,95428.0,0.0001708]
[1734879798489,0.0010493,95435.0,95428.0,0.0001708]
[1734879798921,0.0020493,95435.0,95428.0,0.0001708]
[1734879799156,0.0010493,95435.0,95428.0,0.0001708]
[1734879799404,0.0020493,95436.0,95428.0,0.0001708]
[1734879799604,0.2106153,95435.0,95428.0,0.0001708]
[1734879799979,0.00016301,95446.0,95428.0,0.0001708]
[1734879799980,0.209563,95437.0,95428.0,0.0001708]
[1734879800186,0.0010493,95436.0,95428.0,0.0001708]
[1734879800388,0.20956,95438.0,95428.0,0.0001708]
[1734879800531,0.0010493,95437.0,95428.0,0.0001708]
[1734879800735,0.209544,95445.0,95428.0,0.0001708]
[1734879800978,0.00016301,95446.0,95436.0,0.291962]
[1734879801182,0.209562,95437.0,95436.0,0.0824]
[1734879801385,0.209562,95437.0,95428.0,0.0001708]
[1734879801386,0.005,95435.0,95428.0,0.0001708]
[1734879801626,0.0060493,95435.0,95428.0,0.0001708]
[1734879801897,0.0010493,95435.0,95428.0,0.0001708]
[1734879802619,0.0010493,95436.0,95428.0,0.0001708]
[1734879802744,0.0050493,95435.0,95428.0,0.0001708]
[1734879802944,0.004,95435.0,95428.0,0.0001708]
[1734879803153,0.209562,95437.0,95428.0,0.0001708]
[1734879803367,0.209566,95435.0,95428.0,0.0001708]
[1734879803660,0.209549,95443.0,95428.0,0.0001708]
[1734879803874,0.20780477,95443.0,95428.0,0.0001708]
[1734879804099,0.00016301,95446.0,95429.0,0.419158]
[1734879804312,8.57e-05,95436.0,95429.0,0.209579]
[1734879804697,0.006,95435.0,95429.0,0.209579]
[1734879805127,8.57e-05,95436.0,95428.0,0.0001708]
[1734879805337,8.57e-05,95436.0,95428.0,0.1098364]
[1734879805540,8.57e-05,95436.0,95424.0,0.291988]
[1734879805743,8.57e-05,95436.0,95424.0,0.3932964]
[1734879806121,0.005,95435.0,95425.0,0.209586]
[1734879806320,8.57e-05,95436.0,95425.0,0.209586]
[1734879806584,8.57e-05,95436.0,95424.0,0.1837084]
[1734879806788,8.57e-05,95436.0,95434.0,0.209568]
[1734879807031,8.57e-05,95436.0,95424.0,0.1837084]
[1734879807163,8.57e-05,95436.0,95424.0,0.0824]
[1734879807772,0.209566,95435.0,95424.0,0.0824]
[1734879807955,0.419177,95425.0,95414.0,0.0773]
[1734879808373,0.209598,95421.0,95414.0,0.0773]
[1734879809204,0.209566,95435.0,95414.0,0.0773]
[1734879809205,0.209608,95417.0,95414.0,0.0773]
[1734879809457,0.209577,95430.0,95414.0,0.0773]
[1734879809606,0.209598,95421.0,95414.0,0.0773]
[1734879809803,0.209607,95417.0,95415.0,0.0046912]
[1734879810004,0.209607,95417.0,95414.0,0.0773]
[1734879810313,0.419214,95417.0,95414.0,0.0773]
[1734879810514,0.419214,95417.0,95414.0,0.0005443]
[1734879811796,0.20961,95415.0,95414.0,0.0005443]
[1734879811938,0.20961,95415.0,95408.0,0.0001712]
[1734879811939,0.309623,95409.0,95408.0,0.0001712]
[1734879812158,0.5839314,95409.0,95408.0,0.0001712]
[1734879812363,0.60288817,95409.0,95408.0,0.0001712]
[1734879812568,0.50288817,95409.0,95408.0,0.0001712]
[1734879812785,0.25157977,95409.0,95408.0,0.0001712]
[1734879813027,0.22857977,95409.0,95408.0,0.0001712]
[1734879813517,0.001,95409.0,95408.0,0.0001712]
[1734879813723,0.001,95409.0,95408.0,0.00727332]
[1734879813990,0.001,95409.0,95408.0,0.0001712]
[1734879814195,0.001,95409.0,95408.0,0.00727332]
[1734879815486,0.209591,95424.0,95409.0,0.209623]
[1734879815692,0.209591,95424.0,95411.0,0.209619]
[1734879815899,0.2096,95420.0,95412.0,0.00708942]
[1734879816145,0.209582,95428.0,95408.0,0.0001712]
[1734879816375,0.184623,95409.0,95408.0,0.0001712]
[1734879816608,0.3089314,95409.0,95408.0,0.0001712]
[1734879817069,0.4089314,95409.0,95408.0,0.0001712]
[1734879817302,0.42792371,95409.0,95408.0,0.0001712]
[1734879818221,0.43865005,95409.0,95408.0,0.0001712]